Workbook

Sheet Superpesis
B1: Pirre Simolin | E1: 10.9.1982
B2: SUPERPESIS | E2: Runkosarja | I2: Kärkilyönnit (KL), pesänvälit | P2: Ylempi loppusarja | U2: Alempi loppusarja | Z2: Arvo-ottelut ja mitalit
B3: Vuosi | C3: Sija | D3: Seura | E3: OTT | F3: KUN | G3: LÖI | H3: TOI | I3: KL | J3: 0 > 1 | K3: 1 > 2 | L3: 2 > 3 | M3: 3 > k | N3: KL-% | P3: OTT | Q3: KUN | R3: LÖI | S3: TOI | T3: KL | U3: OTT | V3: KUN | W3: LÖI | X3: TOI | Y3: KL | Z3: IL | AA3: LL | AB3: Halli | AC3: K | AD3: H | AE3: P
B4: 1997 | C4: 5. | D4: ViPa | E4: 1 | F4: 0 | G4: 0 | H4: 0 | I4: 0 | J4: 0 | K4: 0 | L4: 0 | M4: =PRODUCT(F4+G4) -> 0 | N4: -----
B5: 1998 | D5: ViPa 2 | F5: suomensarja
B6: 1999 | C6: 3. | D6: ViPa | E6: 1 | F6: 0 | G6: 0 | H6: 0 | I6: 0 | J6: 0 | K6: 0 | L6: 0 | M6: =PRODUCT(F6+G6) -> 0 | N6: 0.0 % | O6: 1 | AE6: 1
B7: 2000 | C7: 10. | D7: ViPa | E7: 0 | F7: 0 | G7: 0 | H7: 0 | I7: 0 | J7: 0 | K7: 0 | L7: 0 | M7: 0 | U7: 3 | V7: 0 | W7: 0 | X7: 0 | Y7: 2
B8: 2001 | D8: ViPa 2 | F8: suomensarja
B9: 2001 | C9: 11. | D9: ViPa | E9: 24 | F9: 1 | G9: 13 | H9: 6 | I9: 56 | J9: 14 | K9: 10 | L9: 18 | M9: =PRODUCT(F9+G9) -> 14 | N9: 44.8 % | O9: =PRODUCT(I9/N9) -> 125 | U9: 7 | V9: 0 | W9: 7 | X9: 2 | Y9: 25
B10: 2002 | C10: 12. | D10: ViPa | E10: 24 | F10: 0 | G10: 10 | H10: 3 | I10: 69 | J10: 12 | K10: 20 | L10: 27 | M10: =PRODUCT(F10+G10) -> 10 | N10: 47.3 % | O10: =PRODUCT(I10/N10) -> 145.8773784 | U10: 7 | V10: 0 | W10: 7 | X10: 5 | Y10: 25
B11: 2003 | D11: ViPa | F11: ykköspesis | U11: 6 | V11: 0 | W11: 8 | X11: 5 | Y11: 21
B12: 2004
B13: 2005
B14: 2006 | D14: PuMu | F14: suomensarja
B15: 2007 | D15: ViPa | F15: suomensarja
B16: Yhteensä | E16: =SUM(E4:E15) -> 50 | F16: 1 | G16: 23 | H16: 9 | I16: 125 | J16: 26 | K16: 30 | L16: 45 | M16: 24 | N16: =PRODUCT(I16/O16) -> 46.0 % | O16: =SUM(O4:O15) -> 271.8773784 | P16: 0 | Q16: 0 | R16: 0 | S16: 0 | T16: 0 | U16: 23 | V16: 0 | W16: 22 | X16: 12 | Y16: 73 | Z16: 0 | AA16: 0 | AB16: 0 | AC16: 0 | AD16: 0 | AE16: 1
B17: Pesispörssi | D17: =SUM(F16:H16)+((I16-F16-G16)/3)+(E16/3)+(Z16*25)+(AA16*25)+(AB16*10)+(AC16*25)+(AD16*20)+(AE16*15)-15 -> 83.3
B19: URA SUPERISSA | E19: OTT | F19: KUN | G19: LÖI | H19: TOI | I19: KL | K19: ka/L | L19: ka/T | M19: ka/KL | N19: K - % | P19: ENSIMMÄISET
B20: Runkosarja | E20: =PRODUCT(E16) -> 50 | F20: =PRODUCT(F16) -> 1 | G20: =PRODUCT(G16) -> 23 | H20: =PRODUCT(H16) -> 9 | I20: =PRODUCT(I16) -> 125 | K20: =PRODUCT((F20+G20)/E20) -> 0.48 | L20: =PRODUCT(H20/E20) -> 0.18 | M20: =PRODUCT(I20/E20) -> 2.50 | N20: =PRODUCT(N16) -> 46.0 % | O20: =PRODUCT(O16) -> 271.8773784 | P20: Ottelu | R20: 15.06. 1997 SiiPe - ViPa 0-2 (3-9, 3-4) | Z20: 1. ottelu | AB20: 16 v 9 kk 5 pv
B21: Ylempi loppusarja | P21: Lyöty | R21: 03.06. 2001 ViPa - SiiPe 1-0 (7-3, 3-3) | Z21: 10. ottelu | AB21: 18 v 8 kk 24 pv
B22: Alempi loppusarja | E22: =PRODUCT(U16) -> 23 | F22: =PRODUCT(V16) -> 0 | G22: =PRODUCT(W16) -> 22 | H22: =PRODUCT(X16) -> 12 | I22: =PRODUCT(Y16) -> 73 | K22: =PRODUCT((F22+G22)/E22) -> 0.96 | L22: =PRODUCT(H22/E22) -> 0.52 | M22: =PRODUCT(I22/E22) -> 3.17 | N22: =PRODUCT(I22/O22) -> 53.3 % | O22: 137 | P22: Tuotu | R22: 24.05. 2001 KPK - ViPa 2-0 (3-2, 6-2) | Z22: 7. ottelu | AB22: 18 v 8 kk 14 pv
B23: KAIKKI | E23: =SUM(E20:E22) -> 73 | F23: =SUM(F20:F22) -> 1 | G23: =SUM(G20:G22) -> 45 | H23: =SUM(H20:H22) -> 21 | I23: =SUM(I20:I22) -> 198 | K23: =PRODUCT((F23+G23)/E23) -> 0.63 | L23: =PRODUCT(H23/E23) -> 0.29 | M23: =PRODUCT(I23/E23) -> 2.71 | N23: =PRODUCT(I23/O23) -> 48.4 % | O23: =SUM(O20:O22) -> 408.8773784 | P23: Kunnari | R23: 17.07. 2001 ViPa - ViVe 2-0 (4-1, 17-16) | Z23: 22. ottelu | AB23: 18 v 10 kk 7 pv
B25: Tyttöpesäpalloilija 2000
B27: Seurat | D27: ViPa = Vihdin Pallo (1967)
D28: PuMu = Helsingin Puna-Mustat (1941)

Sheet Arvo-ottelut
B1: ITÄ - LÄNSI - KORTTI
B2: Pirre Simolin | C2: 10.9.1982
B3: B-TYTÖT | C3: Itä - Länsi, tulos | D3: Joukkue | E3: Seura | G3: V | H3: T | I3: H | J3: Up. | K3: Lj. | L3: Palk. | M3: O | N3: K | O3: L | P3: T | Q3: KL | R3: 1 | S3: 2 | T3: 3 | U3: k | V3: KL-% | W3: Pelinjohtaja | X3: Yleisöä
B4: 04.07. 1999 Sotkamo | C4: 2-1 (4-2, 3-4, x-x, 4-1) | D4: Länsi | E4: ViPa | I4: 1 | K4: jok | M4: 1 | O4: 1 | Q4: 1/6 | R4: 0/1 | S4: 0/1 | U4: 1/4 | V4: 16.7 % | W4: Janne Ervasti | X4: 2114
B5: 06.08. 2000 Oulu | C5: 0-2 (2-7, 1-15) | D5: Länsi | E5: ViPa | G5: 1 | J5: 2p | K5: 5 | M5: 1 | O5: 2 | P5: 2 | Q5: 5/8 | R5: 1/1 | S5: 1/1 | T5: 1/2 | U5: 2/4 | V5: 62.5 % | W5: Matti Leino | X5: 1380
B6: Yhteensä | G6: 1 | I6: 1 | M6: 2 | O6: 3 | P6: 2 | Q6: 6/14 | R6: 1/2 | S6: 1/2 | T6: 1/2 | U6: 3/8 | V6: 42.9 %
